[Event "Valenciana Championship 2022"]
[Site "Alcossebre"]
[Date "2022.06.15"]
[Round "5.1"]
[White "Valmana Canto, Jaime"]
[Black "Cruz Lledo, Pablo"]
[Result "1-0"]
[ECO "B11"]
[WhiteElo "2392"]
[BlackElo "2435"]
[Annotator "TA"]
[PlyCount "85"]
[EventDate "2022.06.13"]
[EventType "tourn"]
[EventCountry "ESP"]
[SourceTitle "playchess.com"]
[Source "ChessBase"]
[SourceQuality "1"]
[TimeControl "5400+30"]

{[%evp 10,85,16,14,16,8,24,0,0,-49,-35,-43,-36,-128,-33,-64,-61,-62,-35,-43,-25,-118,-127,-147,-123,-175,-122,-145,-135,-139,-108,-123,-65,-64,-54,-62,-72,-46,-74,-27,0,0,75,77,75,59,164,157,144,159,316,309,29948,29952,29973,29974,29968,29969,29977,29978,29977,29978,29977,29975,29973,29966,29975,29977,29975,29977,29977,29978,29977,29973,29975,29974,29966,5189]} 1. e4 {[%emt 0:00:06]} c6 {[%emt 0:03:24]} 2. Nf3 {[%emt 0:00:33]} d5 {[%emt 0:00:05]} 3. Nc3 {[%emt 0:00:06]} Bg4 {[%emt 0:00:10]} 4. h3 {[%emt 0:08:00]} Bxf3 {[%emt 0:00:23]} 5. Qxf3 {[%emt 0:00:07]} e6 {[%emt 0:00:09]} 6. Be2 {[%emt 0:01:04]} Nf6 {[%emt 0:00:23][%cal Bg8f6,Bf6d7,Bd7e5][%mdl 32] B11: Caro-Kann: Two Knights Variation.} 7. O-O {[%emt 0:00:13]} Bc5 {[%emt 0:00:12]} 8. e5 {[%emt 0:12:53]} Nfd7 {[%emt 0:00:37] The position is equal.} 9. Qg4 {[%emt 0:00:07]} (9. Qf4 $11) 9... Nxe5 $15 {[%emt 0:03:16]} 10. Qxg7 {[%emt 0:00:46]} Ng6 {[%emt 0:00:05]} 11. d3 {[%emt 0:13:33]} ({But not} 11. d4 $2 Bf8 12. Qxh8 Nxh8 $19) ({White should play} 11. Qh6 $15) 11... Nd7 {[%emt 0:05:19]} (11... h5 $1 $17 12. Re1 Bf8) 12. Qh6 {[%emt 0:03:51]} Qc7 {[%emt 0:10:15]} 13. Bg5 {[%emt 0:03:56]} f6 {[%emt 0:01:42]} (13... Bf8 $5 14. Qh5 Nf4 $11) 14. Bd2 {[%emt 0:00:13][%cal Ob2b4]} O-O-O {[%emt 0:01:45] [#]} 15. b4 $146 {[%emt 0:02:15]} (15. Rae1 $1 $11) ({Predecessor:} 15. Kh1 Rdg8 16. Rae1 f5 17. Bd1 Re8 18. Ne2 Nf6 19. Ng3 Bxf2 20. Rxf2 Qxg3 21. Rfe2 {0-1 (69) Klovans,J-Furman,S Leningrad 1963}) 15... Bxb4 $17 {[%emt 0:05:24]} 16. Qe3 {[%emt 0:07:21][%csl LRa7,LRe6]} Nf4 {[%emt 0:05:44]} 17. Bg4 {[%emt 0:06:25]} (17. Qxf4 $17 {might work better.} Qxf4 18. Bxf4 Bxc3 19. Rab1) 17... f5 {[%emt 0:10:34]} (17... Bxc3 $19 18. Bxc3 h5) 18. Bf3 {[%emt 0:00:07] [#]} Rhg8 $1 {[%emt 0:05:43] And now ...Nxh3+ would win.} 19. Kh1 {[%emt 0:01:23]} e5 {[%emt 0:07:15] aiming for ...d4.} 20. Qxa7 {[%emt 0:08:09]} e4 {[%emt 0:01:48]} ({Black should try} 20... Qa5 $1 $17 {[%cal Ra5a7]} 21. Qxa5 Bxa5) 21. g3 {[%emt 0:02:30]} Bxc3 {[%emt 0:14:18]} 22. Bxf4 {[%emt 0:01:39]} Be5 {[%emt 0:01:02]} 23. Bxe5 {[%emt 0:02:53]} Nxe5 {[%emt 0:00:32]} 24. Be2 {[%emt 0:02:12]} exd3 {[%emt 0:05:46]} (24... f4 $5 25. d4 Nf3 26. Bxf3 exf3 27. Qa8+ Kd7 $17) 25. cxd3 {[%emt 0:02:12][%cal Bc2d3,Bd3d4][%mdl 32]} h5 {[%emt 0:00:15]} (25... f4 $11 {keeps the balance.} 26. d4 Nc4) 26. Rab1 $1 $16 {[%emt 0:07:24]} h4 {[%emt 0:01:31]} 27. gxh4 {[%emt 0:00:31]} Ng6 {[%emt 0:05:36]} (27... b5 $14 28. Qd4 f4 29. Qxf4 Qd7) 28. d4 $1 $18 {[%emt 0:01:50]} b5 {[%emt 0:00:11] [#]} 29. Qc5 {[%emt 0:09:00][%cal Oe2b5] Bxb5! is the strong threat.} Nf4 $2 {[%emt 0:01:04] [#]} ({Less strong is} 29... Nxh4 30. Rg1 $16) (29... Qd6 $16) 30. Bxb5 $1 {[%emt 0:00:48] Threatens to win with Ba6+.} cxb5 {[%emt 0:00:15]} (30... Ne6 $18 31. Qxc6 Qxc6 32. Bxc6 Rg7) 31. Qxb5 {[%emt 0:00:02] White mates.} Nxh3 {[%emt 0:03:45]} 32. Qa6+ {[%emt 0:00:47]} Kd7 {[%emt 0:00:06]} 33. Rb7 {[%emt 0:00:05]} Qxb7 {[%emt 0:03:39]} 34. Qxb7+ {[%emt 0:00:06]} Kd6 {[%emt 0:00:41]} 35. Qa6+ {[%emt 0:00:57]} Kd7 {[%emt 0:00:10]} 36. Qa4+ {[%emt 0:00:56]} Ke6 {[%emt 0:00:40]} 37. Qa3 {[%emt 0:01:59]} Rg4 {[%emt 0:00:39]} 38. Re1+ {[%emt 0:00:26]} Re4 {[%emt 0:00:57]} 39. Rxe4+ {[%emt 0:00:06]} dxe4 {[%emt 0:00:07]} 40. Qxh3 {[%emt 0:00:06]} Rxd4 {[%emt 0:00:04]} 41. Qb3+ {[%emt 0:00:54]} Kd6 {[%emt 0:00:30]} 42. Qb6+ {[%emt 0:00:40]} Kd5 {[%emt 0:00:02]} 43. Qf6 {[%emt 0:00:32] White used his chance.  Weighted Error Value: White=0.12 (very precise) /Black=0.39} 1-0

[Event "Valenciana Championship 2022"]
[Site "Alcossebre"]
[Date "2022.06.15"]
[Round "5.3"]
[White "Navarro Molina, Carmelo Jose"]
[Black "Granero Roca, Antonio"]
[Result "0-1"]
[ECO "E64"]
[WhiteElo "1834"]
[BlackElo "2340"]
[Annotator "TA"]
[PlyCount "78"]
[EventDate "2022.06.13"]
[EventType "tourn"]
[EventCountry "ESP"]
[SourceTitle "playchess.com"]
[Source "ChessBase"]
[SourceQuality "1"]
[TimeControl "5400+30"]

{[%evp 16,78,54,54,84,45,66,58,58,25,18,20,24,-41,9,0,0,0,33,55,47,50,49,41,34,27,25,-37,9,-11,-18,-40,-48,-87,-84,-212,-201,-202,-179,-206,-205,-208,-213,-163,-115,-173,-143,-376,-347,-355,-355,-327,-287,-902,-319,-417,-399,-1076,-1044,-981,-952,-29993,-29988,-29993,-29994]} 1. d4 {[%emt 0:00:12]} Nf6 {[%emt 0:00:19]} 2. c4 {[%emt 0:00:05]} g6 {[%emt 0:00:25]} 3. g3 {[%emt 0:00:05]} Bg7 {[%emt 0:00:48]} 4. Bg2 {[%emt 0:00:06]} d6 {[%emt 0:00:21]} 5. Nc3 {[%emt 0:00:05]} O-O {[%emt 0:00:32]} 6. Nf3 {[%emt 0:00:04]} Na6 {[%emt 0:00:36]} 7. O-O {[%emt 0:00:19]} c5 {[%emt 0:00:06]} 8. d5 {[%emt 0:00:19]} Nc7 {[%emt 0:01:30]} 9. e4 {[%emt 0:01:32]} Ng4 {[%emt 0:01:42] [#] E64: King's Indian: Fianchetto: 6...c5 7 d5.} 10. Re1 $146 {[%emt 0:08:17]} ({Predecessor:} 10. a4 Na6 11. h3 Ne5 12. Nxe5 Bxe5 13. Bh6 Re8 14. f4 Bd4+ 15. Kh2 Nb4 16. Qd2 a6 17. Rae1 {1-0 (25) Hunger,H (2335)-Pajukari,S (1667) ICCF email 2019}) 10... a6 {[%emt 0:00:57]} 11. a4 {[%emt 0:01:46]} Rb8 {[%emt 0:00:13] White is slightly better.} 12. h3 {[%emt 0:01:22]} Ne5 {[%emt 0:00:18]} 13. Nxe5 {[%emt 0:00:20]} Bxe5 {[%emt 0:00:08]} 14. Qe2 {[%emt 0:00:43]} ({White should play} 14. a5 $11) 14... Bd7 {[%emt 0:01:45]} (14... b5 $15) 15. f4 {[%emt 0:00:24]} Bd4+ {[%emt 0:00:25]} 16. Be3 {[%emt 0:00:06][%cal Oe4e5]} Bxe3+ {[%emt 0:00:57]} 17. Qxe3 {[%emt 0:00:05]} b5 {[%emt 0:00:04]} 18. axb5 $1 {[%emt 0:03:54]} axb5 {[%emt 0:00:09]} 19. b3 $1 {[%emt 0:01:06]} bxc4 {[%emt 0:01:36]} 20. bxc4 {[%emt 0:00:17]} Rb4 {[%emt 0:00:05]} 21. Reb1 {[%emt 0:01:34]} (21. Bf1 $11) 21... Qc8 {[%emt 0:03:24]} (21... Rxc4 $15 22. Rb7 Rb4) 22. g4 {[%emt 0:08:29]} Rxc4 {[%emt 0:03:50]} 23. Bf1 {[%emt 0:05:35]} Rb4 {[%emt 0:00:32]} 24. Rxb4 {[%emt 0:00:35]} cxb4 {[%emt 0:00:11]} 25. Ne2 {[%emt 0:00:08] [#]} (25. Na2 $17) 25... Nb5 $1 $19 {[%emt 0:03:15]} 26. Rc1 {[%emt 0:03:43]} Qb8 {[%emt 0:02:16]} 27. Nd4 {[%emt 0:01:54]} Nxd4 {[%emt 0:02:13]} 28. Qxd4 {[%emt 0:00:18]} Qb7 {[%emt 0:00:21]} 29. Rb1 {[%emt 0:01:04]} Rb8 {[%emt 0:00:07]} (29... b3 $19 30. Bc4 Ba4) 30. Bc4 {[%emt 0:00:06]} (30. Rb3 $17) 30... Ba4 {[%emt 0:00:44] [#] Threatens to win with ...Bc2.} 31. Bb3 {[%emt 0:00:05] Against Bc2} (31. Bd3 $17) 31... Bxb3 {[%emt 0:00:43]} 32. Rxb3 {[%emt 0:00:06][%mdl 4096] Endgame KQR-KQR} Qb5 {[%emt 0:00:03] ...Qc5 is the strong threat.} 33. Kf2 {[%emt 0:04:42]} h6 {[%emt 0:02:06]} 34. Qa7 $2 {[%emt 0:01:28]} (34. Rb2) 34... Rb7 $2 {[%emt 0:01:15]} (34... Rc8 35. Qe3 Rc2+ 36. Kg1 Qa4) 35. Qa8+ {[%emt 0:00:26]} Kg7 {[%emt 0:00:20]} ({Don't go for} 35... Rb8 $2 36. Qc6 $19) 36. Qc8 {[%emt 0:00:14]} (36. Qa1+ f6 37. Qd4) 36... Qb6+ {[%emt 0:01:03]} 37. Kf3 {[%emt 0:01:10]} Rc7 {[%emt 0:03:08]} 38. Qe8 {[%emt 0:01:02]} Qd4 {[%emt 0:01:36]} 39. Qa4 {[%emt 0:03:34]} Qd1+ {[%emt 0:00:23] Weighted Error Value: White=0.71/Black=0.22 (precise)} 0-1

[Event "Valenciana Championship 2022"]
[Site "Alcossebre"]
[Date "2022.06.15"]
[Round "5.4"]
[White "Luque Saiz, Andres"]
[Black "Macias Pino, Diego"]
[Result "1/2-1/2"]
[ECO "B47"]
[WhiteElo "2273"]
[BlackElo "2365"]
[Annotator "TA"]
[PlyCount "56"]
[EventDate "2022.06.13"]
[EventType "tourn"]
[EventCountry "ESP"]
[SourceTitle "playchess.com"]
[Source "ChessBase"]
[SourceQuality "1"]
[TimeControl "5400+30"]

{[%evp 13,56,20,35,10,23,0,4,-10,-10,-10,-8,-80,-46,-44,-12,-39,0,-78,0,-116,-1,-6,39,20,85,39,40,38,39,32,151,157,164,140,134,0,0,0,0,0,0,0,0,0,0]} 1. e4 {[%emt 0:00:43]} c5 {[%emt 0:00:04]} 2. Nf3 {[%emt 0:00:36]} e6 {[%emt 0:00:12]} 3. d4 {[%emt 0:03:33]} cxd4 {[%emt 0:00:14]} 4. Nxd4 {[%emt 0:00:04]} Nc6 {[%emt 0:00:05]} 5. Nc3 {[%emt 0:04:04]} Qc7 {[%emt 0:00:14]} 6. g3 {[%emt 0:01:00]} a6 {[%emt 0:00:33]} 7. Bg2 {[%emt 0:02:04]} h5 {[%emt 0:00:12]} 8. O-O {[%emt 0:04:08] B47: Sicilian: Taimanov: 5 Nc3 Qc7 6 f4, 6 g3 and 6 Be2.} h4 {[%emt 0:00:11]} 9. Nxc6 {[%emt 0:00:53]} dxc6 {[%emt 0:00:05]} 10. e5 {[%emt 0:06:00]} hxg3 {[%emt 0:07:49]} 11. hxg3 {[%emt 0:00:08]} Qxe5 {[%emt 0:01:06] [#]} 12. Bf3 $146 {[%emt 0:04:51]} (12. Re1 $11 Qa5 13. Bf4) ({Predecessor:} 12. Bf4 Qa5 13. Re1 Nf6 14. Re5 Qd8 15. Qxd8+ Kxd8 16. Na4 Nd7 17. Rd1 Ke8 18. c4 {½-½ (40) Rozhkov,V (2239)-Radzhabov,R (2344) Khanty-Mansiysk 2021}) 12... Nf6 {[%emt 0:03:28]} 13. Bf4 {[%emt 0:02:17]} Qa5 {[%emt 0:02:41]} 14. Re1 {[%emt 0:00:16]} Be7 {[%emt 0:00:52]} 15. a3 {[%emt 0:03:24]} (15. Be5 $11 {keeps the balance.}) 15... Bd7 {[%emt 0:06:33]} (15... Qf5 $1 $17) 16. b4 {[%emt 0:06:04]} (16. Be5 $11 {remains equal.}) 16... Qd8 {[%emt 0:02:40]} (16... Qf5 $17 17. Ne4 Qh3) 17. Qe2 $11 {[%emt 0:01:40]} Rc8 {[%emt 0:06:57]} 18. Be5 {[%emt 0:05:50]} O-O {[%emt 0:03:26]} (18... Qb6 $11) 19. Na4 {[%emt 0:02:20]} ({White should play} 19. Kg2 $16) 19... c5 $14 {[%emt 0:16:23]} 20. Nxc5 {[%emt 0:01:04]} Bxc5 {[%emt 0:00:51]} 21. bxc5 {[%emt 0:00:15]} Bc6 {[%emt 0:00:04]} (21... Rxc5 $14 22. Bd6 (22. Bxb7 Bb5 $11) 22... Bb5) 22. Red1 $16 {[%emt 0:06:07]} Nd7 {[%emt 0:01:08] Strongly threatening ...Bxf3.} 23. Bxc6 {[%emt 0:07:06]} Rxc6 {[%emt 0:00:10] [#]} 24. Rab1 {[%emt 0:14:25] 0x0.00166cbf72e4dp-1022s more active pieces. The black rooks are badly placed.} (24. Rd4 $1 $16 Rxc5 {[#]} 25. Rad1 $1 (25. Bd6 Qf6 $16)) 24... Qc8 $11 {[%emt 0:03:12] The position is equal.} ({Much less strong is} 24... Rxc5 25. Bd6 Rc7 26. Rb4 $16 (26. Bxf8 Qxf8 27. Rb4 Qe7 $16) (26. Bxc7 Qxc7 27. Rd4 Rc8 $16)) 25. Bxg7 {[%emt 0:11:02]} Kxg7 {[%emt 0:00:05][%cal Bg8g7,Bg7f6,Bf6g6,Bg6f6][%mdl 32]} 26. Qg4+ {[%emt 0:00:17]} Kf6 $1 {[%emt 0:00:44] ...Ke7 is the strong threat.} 27. Qh4+ {[%emt 0:00:30]} Kg6 $1 {[%emt 0:00:21]} 28. Qg4+ {[%emt 0:07:36]} Kf6 $1 {[%emt 0:00:11] Weighted Error Value: White=0.40/Black=0.30} 1/2-1/2

[Event "Valenciana Championship 2022"]
[Site "Alcossebre"]
[Date "2022.06.15"]
[Round "6.1"]
[White "Cruz Lledo, Pablo"]
[Black "Macias Pino, Diego"]
[Result "1/2-1/2"]
[ECO "D11"]
[WhiteElo "2435"]
[BlackElo "2365"]
[Annotator "TA"]
[PlyCount "26"]
[EventDate "2022.06.13"]
[EventType "tourn"]
[EventCountry "ESP"]
[SourceTitle "playchess.com"]
[Source "ChessBase"]
[SourceQuality "1"]
[TimeControl "5400+30"]

{[%evp 19,26,10,22,0,0,0,0,-4,0]} 1. d4 {[%emt 0:00:04]} Nf6 {[%emt 0:00:09]} 2. Nf3 {[%emt 0:00:03]} d5 {[%emt 0:01:05]} 3. g3 {[%emt 0:00:05]} c6 {[%emt 0:06:06]} 4. Bg2 {[%emt 0:00:13]} Bg4 {[%emt 0:02:53]} 5. O-O {[%emt 0:00:09]} Nbd7 {[%emt 0:04:03]} 6. Nbd2 {[%emt 0:00:41]} e6 {[%emt 0:00:22]} 7. c4 {[%emt 0:00:05]} Bd6 {[%emt 0:01:29]} 8. b3 {[%emt 0:00:23]} Qe7 {[%emt 0:03:31]} 9. Bb2 {[%emt 0:00:26]} O-O {[%emt 0:01:24]} 10. Ne5 {[%emt 0:01:38]} Bf5 {[%emt 0:01:16] The position is equal.} 11. Re1 {[%emt 0:10:38] D11: Slav Defence: 3 Nf3 sidelines and 3...Nf6 4 e3 Bg4.} Rfd8 {[%emt 0:02:35]} 12. Nxd7 {[%emt 0:03:54]} Rxd7 {[%emt 0:00:39] [#]} 13. c5 $146 {[%emt 0:02:06]} ({Predecessor:} 13. e4 dxe4 14. Nxe4 Nxe4 15. Bxe4 Bb4 16. Bxf5 Bxe1 17. Bxh7+ Kxh7 18. Qh5+ Kg8 19. Rxe1 Qf6 20. Re5 Qh6 21. Qe2 Qg6 22. Kg2 Rad8 23. h4 Rxd4 24. Bxd4 Rxd4 25. Qe3 {½-½ (25) Boyd,S (2311)-Colovic,A (2463) France 2007}) 13... Bc7 {[%emt 0:03:46] An uneventful encounter.  Weighted Error Value: White=0.07 (flawless) /Black=0.00 (flawless)} 1/2-1/2

[Event "Valenciana Championship 2022"]
[Site "Alcossebre"]
[Date "2022.06.15"]
[Round "6.2"]
[White "Granero Roca, Antonio"]
[Black "Luque Saiz, Andres"]
[Result "1/2-1/2"]
[ECO "D12"]
[WhiteElo "2340"]
[BlackElo "2273"]
[Annotator "TA"]
[PlyCount "38"]
[EventDate "2022.06.13"]
[EventType "tourn"]
[EventCountry "ESP"]
[SourceTitle "playchess.com"]
[Source "ChessBase"]
[SourceQuality "1"]
[TimeControl "5400+30"]

{[%evp 18,38,16,11,9,0,0,0,0,0,0,0,0,0,0,0,8,0,0,-2,0,-26,-10]} 1. Nf3 {[%emt 0:00:06]} Nf6 {[%emt 0:02:21]} 2. c4 {[%emt 0:00:18]} c6 {[%emt 0:00:19]} 3. e3 {[%emt 0:01:51]} d5 {[%emt 0:00:08]} 4. d4 {[%emt 0:00:11]} Bf5 {[%emt 0:00:43]} 5. cxd5 {[%emt 0:00:49]} cxd5 {[%emt 0:00:33]} 6. Qb3 {[%emt 0:00:06]} Qc7 {[%emt 0:01:01]} 7. Bd2 {[%emt 0:00:22]} e6 {[%emt 0:00:49]} 8. Bb5+ {[%emt 0:00:38]} Nc6 {[%emt 0:00:10]} 9. O-O $1 {[%emt 0:00:58] The main line 9.0-0 scores better than 9.Bb4.} Bd6 {[%emt 0:00:29]} 10. Bb4 {[%emt 0:00:45]} O-O {[%emt 0:00:34] D12: Slav Defence: 3 Nf3 Nf6 4 e3 Bf5.} 11. Bxc6 {[%emt 0:00:24]} bxc6 {[%emt 0:00:12]} 12. Nbd2 {[%emt 0:00:55]} Rab8 {[%emt 0:00:23] The position is equal.} 13. Bxd6 {[%emt 0:00:08]} Qxd6 {[%emt 0:00:03]} 14. Qc3 {[%emt 0:00:15]} Nd7 {[%emt 0:00:12]} 15. Rfc1 {[%emt 0:01:57]} Rfc8 {[%emt 0:00:18]} 16. Nb3 {[%emt 0:01:43] [#]} Qc7 $146 {[%emt 0:03:23]} ({Predecessor:} 16... h6 17. Qa5 Rc7 18. Rc3 Rb5 19. Qa6 Rb6 20. Qe2 Qb4 21. h3 Rb8 22. Qa6 Rb6 {½-½ (48) Hebden,M (2532)-Balogh,C (2619) Cappelle la Grande 2010}) 17. h3 {[%emt 0:02:20]} h6 {[%emt 0:02:01]} 18. Qd2 {[%emt 0:12:32]} Qb6 {[%emt 0:04:38]} 19. Qc3 {[%emt 0:13:40]} Rc7 {[%emt 0:12:20] An even fight not without its subleties.  Weighted Error Value: White=0.04 (flawless) /Black=0.01 (flawless)} 1/2-1/2

[Event "Valenciana Championship 2022"]
[Site "Alcossebre"]
[Date "2022.06.15"]
[Round "6.3"]
[White "Jordan Martinez, David"]
[Black "Navarro Molina, Carmelo Jose"]
[Result "1-0"]
[ECO "D20"]
[WhiteElo "2154"]
[BlackElo "1834"]
[Annotator "TA"]
[PlyCount "105"]
[EventDate "2022.06.13"]
[EventType "tourn"]
[EventCountry "ESP"]
[SourceTitle "playchess.com"]
[Source "ChessBase"]
[SourceQuality "1"]
[TimeControl "5400+30"]

{[%evp 12,105,40,38,35,0,43,50,58,-14,0,-6,-15,-48,-39,-41,-58,-51,-46,-59,-42,-54,-26,-59,-63,-66,-24,-19,-19,-34,-28,-13,0,0,11,11,11,0,8,7,14,13,14,0,0,0,0,0,29,24,24,17,19,18,20,22,35,9,66,66,305,319,411,407,403,403,391,363,371,335,452,417,475,475,454,445,454,456,431,454,372,379,553,536,29975,29976,29976,29970,29977,29978,29978,29979,29978,29978,29977,29978]} 1. d4 {[%emt 0:00:03]} d5 {[%emt 0:00:20]} 2. c4 {[%emt 0:00:07]} dxc4 {[%emt 0:00:06]} 3. e4 {[%emt 0:00:07]} e5 {[%emt 0:00:04]} 4. Nf3 {[%emt 0:00:21]} exd4 {[%emt 0:00:07]} 5. Bxc4 {[%emt 0:01:21]} Bb4+ {[%emt 0:03:05]} 6. Nbd2 {[%emt 0:00:39]} Nc6 {[%emt 0:00:05]} 7. O-O {[%emt 0:00:44][%mdl 1024] White has compensation.} Nf6 {[%emt 0:00:08] D20: Queen's Gambit Accepted: 3 e3 and 3 e4.} 8. a3 {[%emt 0:06:56]} Be7 {[%emt 0:04:53]} (8... Bxd2 $5 9. Qxd2 O-O $11) 9. e5 {[%emt 0:09:13]} Nd5 {[%emt 0:03:39] [#] White is slightly better.} 10. h3 $146 {[%emt 0:06:25]} ({White should try} 10. Qb3 $14 Na5 11. Qa4+ c6 12. Ba2) ({Predecessor:} 10. Qb3 Na5 11. Qa4+ Nc6 12. Nxd4 Nb6 13. Nxc6 Nxa4 14. Nxd8 Bxd8 15. Ne4 Nb6 16. Bb3 Be7 {0-1 (52) Miton,K (2588)-Lintchevski,D (2516) St Petersburg 2018}) 10... O-O {[%emt 0:01:06]} 11. Nb3 {[%emt 0:00:39] Against Na5} Nb6 {[%emt 0:03:02]} 12. Bb5 {[%emt 0:01:29]} Qd5 $36 {[%emt 0:05:43][%mdl 2048] Black is pushing.} 13. Bxc6 {[%emt 0:02:03]} Qxc6 {[%emt 0:05:29]} 14. Nbxd4 {[%emt 0:00:43]} Qg6 {[%emt 0:03:11] And now ...Bxh3 would win.} 15. Qc2 {[%emt 0:13:12]} Qxc2 {[%emt 0:02:59]} 16. Nxc2 {[%emt 0:00:02]} c5 {[%emt 0:00:16]} 17. Ne3 {[%emt 0:02:11]} Be6 {[%emt 0:00:18]} 18. Bd2 {[%emt 0:00:36]} Nc4 {[%emt 0:03:00]} 19. Nxc4 {[%emt 0:07:13]} Bxc4 {[%emt 0:00:10]} 20. Rfc1 {[%emt 0:01:46]} Be6 {[%emt 0:01:25]} 21. Bg5 {[%emt 0:01:40]} Bxg5 {[%emt 0:05:04]} 22. Nxg5 {[%emt 0:00:02]} Rac8 {[%emt 0:01:32]} 23. Ne4 {[%emt 0:00:52]} b6 {[%emt 0:03:02]} 24. f4 {[%emt 0:03:28]} Rcd8 {[%emt 0:09:43]} 25. Nd6 {[%emt 0:00:42]} f6 {[%emt 0:00:52]} 26. b4 {[%emt 0:04:57]} g5 {[%emt 0:03:31]} 27. Ne4 {[%emt 0:06:58]} fxe5 {[%emt 0:04:34]} 28. fxe5 {[%emt 0:00:04]} Rf5 {[%emt 0:02:38]} 29. Re1 {[%emt 0:06:27]} Kg7 {[%emt 0:02:14]} (29... c4 $5 {[%cal Rd8d3]}) 30. Nd6 {[%emt 0:07:03]} Rf4 {[%emt 0:02:52]} 31. bxc5 {[%emt 0:00:23]} bxc5 {[%emt 0:00:01]} 32. Rab1 {[%emt 0:00:41]} Rd7 {[%emt 0:01:29]} 33. Rb5 {[%emt 0:01:01]} c4 {[%emt 0:02:11]} 34. Rc5 {[%emt 0:01:09]} g4 {[%emt 0:00:55]} ({Black should play} 34... Rd4 $11) 35. hxg4 $14 {[%emt 0:01:24] White is more active.} Rxg4 $2 {[%emt 0:00:15] [#] Loses the game.} ({Better is} 35... Re7 $14) 36. Ne8+ $1 $18 {[%emt 0:00:21]} Kf8 {[%emt 0:02:55]} 37. Nf6 {[%emt 0:00:04][%csl LRd7,LRg4]} Rgd4 {[%emt 0:00:09]} 38. Nxd7+ {[%emt 0:00:00]} Rxd7 {[%emt 0:00:00][%mdl 4096] Endgame KRR-KRB} 39. Rb1 {[%emt 0:02:15]} Kf7 {[%emt 0:01:38]} 40. a4 {[%emt 0:00:41][%cal Ba3a4,Ba4a5][%mdl 32]} h5 {[%emt 0:01:18]} 41. a5 {[%emt 0:00:10]} Bf5 {[%emt 0:02:13]} 42. Rf1 {[%emt 0:01:18]} Ke6 {[%emt 0:00:04]} 43. Rxc4 {[%emt 0:01:28]} Bd3 {[%emt 0:00:21]} 44. Rc6+ {[%emt 0:00:45]} Kxe5 {[%emt 0:00:05]} 45. Rd1 {[%emt 0:03:00]} Ke4 {[%emt 0:02:03]} 46. Rc5 {[%emt 0:01:21]} Ke3 {[%emt 0:00:33]} (46... Rh7 $142 47. Re1+ Kd4) 47. Rxh5 {[%emt 0:00:44]} a6 {[%emt 0:00:34]} 48. Rh3+ {[%emt 0:00:12] White mates.} Ke4 {[%emt 0:00:14] [#]} 49. Rdxd3 $1 {[%emt 0:02:14]} Rxd3 {[%emt 0:00:01]} (49... Ra7 50. Rhe3+) 50. Rxd3 {[%emt 0:00:10]} Kxd3 {[%emt 0:00:16]} 51. Kh2 {[%emt 0:00:14]} Ke4 {[%emt 0:00:02]} 52. Kh3 {[%emt 0:00:07]} Kf5 {[%emt 0:00:14]} 53. Kh4 {[%emt 0:00:11] Weighted Error Value: White=0.08 (flawless) /Black=0.45} 1-0

[Event "Valenciana Championship 2022"]
[Site "Alcossebre"]
[Date "2022.06.15"]
[Round "6.4"]
[White "Valmana Canto, Jaime"]
[Black "Carbonell Sancho, Marc"]
[Result "1/2-1/2"]
[ECO "E90"]
[WhiteElo "2392"]
[BlackElo "2269"]
[Annotator "TA"]
[PlyCount "52"]
[EventDate "2022.06.13"]
[EventType "tourn"]
[EventCountry "ESP"]
[SourceTitle "playchess.com"]
[Source "ChessBase"]
[SourceQuality "1"]
[TimeControl "5400+30"]

{[%evp 15,52,39,49,0,40,10,24,14,20,16,24,10,13,17,162,145,160,120,156,168,185,67,356,356,382,373,352,150,154,145,144,136,142,69,62,61,77,68,75]} 1. c4 {[%emt 0:00:21]} Nf6 {[%emt 0:09:37]} 2. Nc3 {[%emt 0:00:08]} g6 {[%emt 0:00:05]} 3. e4 {[%emt 0:00:05]} d6 {[%emt 0:00:03]} 4. d4 {[%emt 0:00:06][%cal Bd2d4,Bd4d5][%mdl 32]} Bg7 {[%emt 0:00:07]} 5. h3 {[%emt 0:00:48]} O-O {[%emt 0:00:13]} 6. Be3 {[%emt 0:00:09]} c6 {[%emt 0:10:07]} 7. Nf3 {[%emt 0:11:22]} e5 {[%emt 0:01:09]} 8. d5 {[%emt 0:00:06]} Na6 {[%emt 0:02:48]} 9. Nd2 {[%emt 0:03:57] E90: King's Indian: Classical: Early deviations and 6 h3.} (9. Rc1 $14) 9... Bd7 {[%emt 0:00:48]} 10. a3 {[%emt 0:04:35]} Ne8 {[%emt 0:06:20]} 11. g4 {[%emt 0:00:26] White has an edge.} cxd5 {[%emt 0:00:10]} (11... f5 {feels hotter.} 12. gxf5 gxf5 13. exf5 cxd5 14. cxd5 Bxf5 15. Nde4 Nc5) 12. cxd5 {[%emt 0:02:11]} f5 {[%emt 0:00:04]} 13. gxf5 {[%emt 0:00:06]} gxf5 {[%emt 0:00:04]} 14. exf5 {[%emt 0:00:06] [#]} ({Wrong is} 14. Rg1 $2 f4 15. Bxa7 (15. Bxa6 $2 fxe3 16. fxe3 bxa6 $19) 15... Rxa7 $19) 14... e4 $146 {[%emt 0:01:46]} (14... Bxf5 $11 {and Black is okay.} 15. Nde4 Kh8) ({Predecessor:} 14... Bxf5 15. Nde4 Nf6 16. Bd3 Kh8 17. Rg1 Bxe4 18. Bxe4 Rc8 19. Bf5 Rxc3 20. bxc3 Qa5 {½-½ (35) Kozionov,K (2409)-Kokarev,D (2603) St Petersburg 2015}) 15. Ndxe4 $18 {[%emt 0:00:42][%cal Of5f6]} Bxf5 {[%emt 0:00:23]} 16. Bd3 {[%emt 0:00:31]} Qe7 {[%emt 0:24:07]} 17. Rg1 {[%emt 0:13:58]} Rc8 {[%emt 0:00:30]} 18. Ng5 {[%emt 0:06:49]} (18. Qc2 $18) 18... Nc5 $2 {[%emt 0:06:38][%mdl 8192] [#]} (18... Bxc3+ $2 19. bxc3 Kh8 20. Qe2 $18) (18... Rxc3 $14 19. bxc3 Bxc3+ 20. Ke2 Bxa1) 19. Bxf5 $1 {[%emt 0:02:06]} Rxf5 {[%emt 0:00:03]} 20. Qc2 {[%emt 0:03:37]} Qf6 {[%emt 0:04:45] [#]} (20... Bxc3+ $2 21. Qxc3 Rxd5 22. Kf1 $18) 21. Rd1 {[%emt 0:14:46]} (21. Nxh7 $1 $18 {[%mdl 512] and White stays clearly on top.} Qe5 22. Rg5 Rxg5 23. Nxg5) 21... h6 $16 {[%emt 0:04:07]} 22. Nge4 {[%emt 0:08:57]} Nxe4 {[%emt 0:00:23]} 23. Qxe4 {[%emt 0:00:09]} Re5 {[%emt 0:01:02]} 24. Qg6 {[%emt 0:05:23] White is much more active.} (24. Qd3 $16) 24... Qxg6 $14 {[%emt 0:08:50]} 25. Rxg6 {[%emt 0:00:07]} Kf7 {[%emt 0:00:03]} 26. Rg4 {[%emt 0:02:40]} Rh5 {[%emt 0:19:18] Weighted Error Value: White=0.29 (precise) /Black=0.50} 1/2-1/2